[Event "Early-Titled-Tuesday-Blitz-December-26-2023"]
[Site "Chess.com"]
[Date "2023.12.26"]
[Round "8"]
[White "AndresDelgado77"]
[Black "jlmanzanares"]
[Result "1-0"]
[WhiteElo "2311"]
[BlackElo "2012"]
[TimeControl "180+1"]
[EndTime "9:29:37 PST"]
[Termination "AndresDelgado77 won on time"]

1. e4 {[%clk 0:01:53.8]} 1... c5 {[%clk 0:02:58.4]} 2. Nf3 {[%clk 0:01:53.5]}
2... d6 {[%clk 0:02:58.3]} 3. d4 {[%clk 0:01:53.3]} 3... cxd4 {[%clk 0:02:59.2]}
4. Qxd4 {[%clk 0:01:53.7]} 4... Nf6 {[%clk 0:02:59.3]} 5. e5 {[%clk 0:01:52.2]}
5... dxe5 {[%clk 0:02:56.9]} 6. Qxd8+ {[%clk 0:01:51.2]} 6... Kxd8 {[%clk
0:02:57.8]} 7. Bc4 {[%clk 0:01:51.6]} 7... e6 {[%clk 0:02:55.6]} 8. Nxe5 {[%clk
0:01:50.4]} 8... Ke8 {[%clk 0:02:55]} 9. Nc3 {[%clk 0:01:48.4]} 9... Nbd7 {[%clk
0:02:51.1]} 10. Bf4 {[%clk 0:01:44.6]} 10... Nxe5 {[%clk 0:02:50.8]} 11. Bxe5
{[%clk 0:01:44]} 11... Bb4 {[%clk 0:02:46.6]} 12. O-O-O {[%clk 0:01:42.6]} 12...
Bd7 {[%clk 0:01:15.9]} 13. Nb5 {[%clk 0:01:07.8]} 13... Ke7 {[%clk 0:00:54.8]}
14. a3 {[%clk 0:00:39.7]} 14... a6 {[%clk 0:00:43.3]} 15. Nc7 {[%clk 0:00:34.6]}
15... Bc5 {[%clk 0:00:35.8]} 16. Nxa8 {[%clk 0:00:31.6]} 16... Rxa8 {[%clk
0:00:33.1]} 17. f3 {[%clk 0:00:28.9]} 17... Be3+ {[%clk 0:00:21.9]} 18. Kb1
{[%clk 0:00:28.7]} 18... b5 {[%clk 0:00:20.4]} 19. Bd3 {[%clk 0:00:27.6]} 19...
Nd5 {[%clk 0:00:18.7]} 20. Be4 {[%clk 0:00:23.1]} 20... Bc6 {[%clk 0:00:18.1]}
21. Rhe1 {[%clk 0:00:18.8]} 21... Bh6 {[%clk 0:00:17.4]} 22. g3 {[%clk
0:00:15.6]} 22... Kf8 {[%clk 0:00:16.8]} 23. Bd6+ {[%clk 0:00:14.8]} 23... Kg8
{[%clk 0:00:15.5]} 24. Bc5 {[%clk 0:00:13.2]} 24... g6 {[%clk 0:00:15.1]} 25.
Bd4 {[%clk 0:00:12.5]} 25... Rc8 {[%clk 0:00:13.1]} 26. f4 {[%clk 0:00:12.1]}
26... a5 {[%clk 0:00:11.7]} 27. h4 {[%clk 0:00:11.9]} 27... b4 {[%clk
0:00:11.4]} 28. axb4 {[%clk 0:00:10.4]} 28... axb4 {[%clk 0:00:12.3]} 29. b3
{[%clk 0:00:09.3]} 29... Nc3+ {[%clk 0:00:12]} 30. Bxc3 {[%clk 0:00:09.3]} 30...
bxc3 {[%clk 0:00:12.9]} 31. Bxc6 {[%clk 0:00:09.2]} 31... Rxc6 {[%clk
0:00:13.2]} 32. Rd8+ {[%clk 0:00:08.8]} 32... Kg7 {[%clk 0:00:13.8]} 33. Re4
{[%clk 0:00:08.7]} 33... Kf6 {[%clk 0:00:13]} 34. Rd7 {[%clk 0:00:07.1]} 34...
Kf5 {[%clk 0:00:12.8]} 35. Rc4 {[%clk 0:00:06.5]} 35... f6 {[%clk 0:00:12.9]}
36. Rxc6 {[%clk 0:00:06.3]} 36... Kg4 {[%clk 0:00:11.7]} 37. Rxe6 {[%clk
0:00:05.8]} 37... f5 {[%clk 0:00:11.7]} 38. Rxh7 {[%clk 0:00:05.2]} 38... Kxg3
{[%clk 0:00:12]} 39. Rxh6 {[%clk 0:00:04.9]} 39... Kxf4 {[%clk 0:00:12.9]} 40.
Rexg6 {[%clk 0:00:05.2]} 40... Ke4 {[%clk 0:00:13]} 41. Rh8 {[%clk 0:00:05.6]}
41... f4 {[%clk 0:00:13.9]} 42. Rf8 {[%clk 0:00:05.8]} 42... Ke3 {[%clk
0:00:14.8]} 43. Re6+ {[%clk 0:00:05.6]} 43... Kf3 {[%clk 0:00:14.7]} 44. Ref6
{[%clk 0:00:05.7]} 44... Kg3 {[%clk 0:00:14.9]} 45. Rxf4 {[%clk 0:00:06.2]}
45... Kh2 {[%clk 0:00:15.1]} 46. Rc4 {[%clk 0:00:06.6]} 1-0

[Event "Early-Titled-Tuesday-Blitz-December-26-2023"]
[Site "Chess.com"]
[Date "2023.12.26"]
[Round "8"]
[White "viktorskliarov"]
[Black "Journey_to_GrandMaster_YT"]
[Result "1-0"]
[WhiteElo "2652"]
[BlackElo "2528"]
[TimeControl "180+1"]
[EndTime "9:29:45 PST"]
[Termination "viktorskliarov won on time"]

1. e4 {[%clk 0:03:00.9]} 1... d6 {[%clk 0:03:00.9]} 2. d4 {[%clk 0:03:00.1]}
2... Nf6 {[%clk 0:03:01.4]} 3. Nc3 {[%clk 0:02:59.5]} 3... e5 {[%clk 0:02:58.6]}
4. Nge2 {[%clk 0:02:58.3]} 4... c6 {[%clk 0:02:55.4]} 5. f3 {[%clk 0:02:54.4]}
5... Be7 {[%clk 0:02:52.5]} 6. Be3 {[%clk 0:02:54.5]} 6... b5 {[%clk 0:02:51.8]}
7. Qd2 {[%clk 0:02:54.6]} 7... Qa5 {[%clk 0:02:47.2]} 8. g4 {[%clk 0:02:54.1]}
8... b4 {[%clk 0:02:45.9]} 9. Nd1 {[%clk 0:02:52.4]} 9... Ba6 {[%clk 0:02:31.6]}
10. Nf2 {[%clk 0:02:35.4]} 10... exd4 {[%clk 0:02:27.9]} 11. Nxd4 {[%clk
0:02:30.6]} 11... Bxf1 {[%clk 0:02:27.6]} 12. Kxf1 {[%clk 0:02:30.7]} 12... g6
{[%clk 0:02:13]} 13. Kg2 {[%clk 0:02:23.5]} 13... c5 {[%clk 0:02:08.2]} 14. Nb3
{[%clk 0:02:14.8]} 14... Qc7 {[%clk 0:02:07.3]} 15. a3 {[%clk 0:01:59.4]} 15...
Nc6 {[%clk 0:01:55.2]} 16. axb4 {[%clk 0:01:57.9]} 16... Nxb4 {[%clk 0:01:55.1]}
17. h4 {[%clk 0:01:27.2]} 17... h5 {[%clk 0:01:50.4]} 18. g5 {[%clk 0:01:26.4]}
18... Nd7 {[%clk 0:01:49.9]} 19. c3 {[%clk 0:01:17.4]} 19... Nc6 {[%clk
0:01:48.7]} 20. Ra3 {[%clk 0:01:09.9]} 20... O-O {[%clk 0:01:46.8]} 21. Rha1
{[%clk 0:01:09.6]} 21... Nde5 {[%clk 0:01:36.4]} 22. Qe2 {[%clk 0:01:04.6]}
22... f5 {[%clk 0:01:22.6]} 23. f4 {[%clk 0:00:48.1]} 23... Nd7 {[%clk
0:01:10.5]} 24. Qc4+ {[%clk 0:00:43.4]} 24... Kh7 {[%clk 0:01:08.2]} 25. Na5
{[%clk 0:00:43.4]} 25... Nxa5 {[%clk 0:00:59.9]} 26. Rxa5 {[%clk 0:00:43.2]}
26... Nb6 {[%clk 0:00:50.3]} 27. Qe6 {[%clk 0:00:34.4]} 27... Bd8 {[%clk
0:00:25.8]} 28. b4 {[%clk 0:00:26.4]} 28... cxb4 {[%clk 0:00:18.8]} 29. exf5
{[%clk 0:00:26.6]} 29... Rxf5 {[%clk 0:00:13.1]} 30. Rxf5 {[%clk 0:00:25.9]}
30... gxf5 {[%clk 0:00:13.5]} 31. Qxf5+ {[%clk 0:00:19.9]} 31... Kg8 {[%clk
0:00:14]} 32. Bxb6 {[%clk 0:00:16.5]} 32... Qb7+ {[%clk 0:00:10.6]} 33. Qe4
{[%clk 0:00:15.3]} 33... Qxe4+ {[%clk 0:00:09.9]} 34. Nxe4 {[%clk 0:00:15.3]}
34... Bxb6 {[%clk 0:00:10.5]} 35. cxb4 {[%clk 0:00:15.6]} 35... d5 {[%clk
0:00:10.1]} 36. Nf6+ {[%clk 0:00:15.9]} 36... Kf7 {[%clk 0:00:10.4]} 37. Nxd5
{[%clk 0:00:16.7]} 37... Bd4 {[%clk 0:00:10.7]} 38. Ra6 {[%clk 0:00:16.3]} 38...
Rd8 {[%clk 0:00:09.6]} 39. Nf6 {[%clk 0:00:13.5]} 39... Bb6 {[%clk 0:00:09.1]}
40. Nxh5 {[%clk 0:00:11.2]} 40... Kg6 {[%clk 0:00:09.5]} 41. Ng3 {[%clk
0:00:11.2]} 41... Rd2+ {[%clk 0:00:08.9]} 42. Kf3 {[%clk 0:00:11.7]} 42... Rd3+
{[%clk 0:00:09.2]} 43. Kg4 {[%clk 0:00:12.1]} 43... Rb3 {[%clk 0:00:09.4]} 44.
h5+ {[%clk 0:00:12.4]} 44... Kf7 {[%clk 0:00:09.5]} 45. Nf5 {[%clk 0:00:12.5]}
45... Rxb4 {[%clk 0:00:08.5]} 46. Nd6+ {[%clk 0:00:12.5]} 46... Ke6 {[%clk
0:00:08.6]} 47. Nc8 {[%clk 0:00:12.8]} 47... Rb1 {[%clk 0:00:08]} 48. h6 {[%clk
0:00:12.3]} 48... Kf7 {[%clk 0:00:07.8]} 49. Nxb6 {[%clk 0:00:12.1]} 49... axb6
{[%clk 0:00:08.1]} 50. Ra7+ {[%clk 0:00:12.5]} 50... Kg8 {[%clk 0:00:07.9]} 51.
Kf5 {[%clk 0:00:12.7]} 51... Rf1 {[%clk 0:00:06.4]} 52. Rb7 {[%clk 0:00:12.7]}
52... Rb1 {[%clk 0:00:04.6]} 53. Kg6 {[%clk 0:00:12.9]} 53... Kf8 {[%clk
0:00:03.5]} 54. Rb8+ {[%clk 0:00:13.4]} 54... Ke7 {[%clk 0:00:04]} 55. h7 {[%clk
0:00:14.2]} 55... Rh1 {[%clk 0:00:04.2]} 56. h8=Q {[%clk 0:00:14.7]} 56... Rxh8
{[%clk 0:00:04.4]} 57. Rxh8 {[%clk 0:00:15.5]} 1-0

[Event "Early-Titled-Tuesday-Blitz-December-26-2023"]
[Site "Chess.com"]
[Date "2023.12.26"]
[Round "8"]
[White "FelixBlohberger"]
[Black "Mikhail_Golubev"]
[Result "1/2-1/2"]
[WhiteElo "2773"]
[BlackElo "2626"]
[TimeControl "180+1"]
[EndTime "9:29:46 PST"]
[Termination "Game drawn - insufficient material"]

1. e4 {[%clk 0:03:00.9]} 1... c5 {[%clk 0:02:58.8]} 2. Nf3 {[%clk 0:02:59.8]}
2... d6 {[%clk 0:02:58.9]} 3. d4 {[%clk 0:02:58.7]} 3... cxd4 {[%clk 0:02:58.2]}
4. Nxd4 {[%clk 0:02:59.6]} 4... Nf6 {[%clk 0:02:57.8]} 5. Bd3 {[%clk 0:02:59.7]}
5... Nc6 {[%clk 0:02:53.1]} 6. Be3 {[%clk 0:02:58.9]} 6... Ng4 {[%clk
0:02:39.3]} 7. Nxc6 {[%clk 0:02:58.5]} 7... Nxe3 {[%clk 0:02:21.2]} 8. Nxd8
{[%clk 0:02:54.6]} 8... Nxd1 {[%clk 0:02:20.3]} 9. Nxf7 {[%clk 0:02:47.7]} 9...
Nxf2 {[%clk 0:02:19.3]} 10. Nxd6+ {[%clk 0:02:47.3]} 10... exd6 {[%clk
0:02:17.1]} 11. Kxf2 {[%clk 0:02:44]} 11... g6 {[%clk 0:02:09.5]} 12. Nc3 {[%clk
0:02:40]} 12... Bg7 {[%clk 0:02:00.7]} 13. Bb5+ {[%clk 0:02:22.7]} 13... Bd7
{[%clk 0:01:55.8]} 14. Bxd7+ {[%clk 0:02:12.4]} 14... Kxd7 {[%clk 0:01:56.7]}
15. Nd5 {[%clk 0:02:08.5]} 15... Bxb2 {[%clk 0:01:47]} 16. Rab1 {[%clk
0:02:08.6]} 16... Bd4+ {[%clk 0:01:46.6]} 17. Ke2 {[%clk 0:02:09.3]} 17... b6
{[%clk 0:01:40.3]} 18. Rhf1 {[%clk 0:02:05.9]} 18... Rhf8 {[%clk 0:01:26.7]} 19.
a4 {[%clk 0:02:01.8]} 19... Rac8 {[%clk 0:01:17.9]} 20. Kd3 {[%clk 0:02:01.1]}
20... Be5 {[%clk 0:01:16.6]} 21. h3 {[%clk 0:01:56.8]} 21... Rxf1 {[%clk
0:00:56.5]} 22. Rxf1 {[%clk 0:01:56.3]} 22... Ke6 {[%clk 0:00:55.5]} 23. g4
{[%clk 0:01:43.8]} 23... Rc5 {[%clk 0:00:43.8]} 24. Rf8 {[%clk 0:01:21.9]} 24...
Ra5 {[%clk 0:00:41.6]} 25. Re8+ {[%clk 0:01:18.8]} 25... Kf7 {[%clk 0:00:35.7]}
26. Re7+ {[%clk 0:01:06.3]} 26... Kg8 {[%clk 0:00:35.6]} 27. g5 {[%clk
0:00:39.4]} 27... Rxa4 {[%clk 0:00:35.1]} 28. Nf6+ {[%clk 0:00:39.5]} 28... Bxf6
{[%clk 0:00:34.9]} 29. gxf6 {[%clk 0:00:40.4]} 29... Ra1 {[%clk 0:00:31.2]} 30.
Rg7+ {[%clk 0:00:39.9]} 30... Kf8 {[%clk 0:00:31]} 31. Rxh7 {[%clk 0:00:38.9]}
31... Rf1 {[%clk 0:00:29.6]} 32. Rxa7 {[%clk 0:00:37.7]} 32... Rxf6 {[%clk
0:00:29.2]} 33. Kd4 {[%clk 0:00:26.6]} 33... Rf3 {[%clk 0:00:19.9]} 34. Rd7
{[%clk 0:00:23.6]} 34... Rxh3 {[%clk 0:00:08]} 35. Rxd6 {[%clk 0:00:23.4]} 35...
Rh2 {[%clk 0:00:04.2]} 36. Rc6 {[%clk 0:00:10.5]} 36... g5 {[%clk 0:00:02.4]}
37. Ke5 {[%clk 0:00:07.3]} 37... Rf2 {[%clk 0:00:02.4]} 38. c4 {[%clk
0:00:04.5]} 38... g4 {[%clk 0:00:02.5]} 39. Rxb6 {[%clk 0:00:04.9]} 39... g3
{[%clk 0:00:02.6]} 40. Rb3 {[%clk 0:00:05.3]} 40... g2 {[%clk 0:00:02.1]} 41.
Rg3 {[%clk 0:00:05.9]} 41... Ke7 {[%clk 0:00:01.7]} 42. Rg7+ {[%clk 0:00:05.1]}
42... Kf8 {[%clk 0:00:01.5]} 43. Rg3 {[%clk 0:00:05]} 43... Ke7 {[%clk
0:00:02.1]} 44. c5 {[%clk 0:00:05.6]} 44... Kd7 {[%clk 0:00:02.6]} 45. Rg6
{[%clk 0:00:05.4]} 45... Kc7 {[%clk 0:00:02]} 46. Kd4 {[%clk 0:00:04.2]} 46...
Rd2+ {[%clk 0:00:01.9]} 47. Ke5 {[%clk 0:00:04.3]} 47... Rc2 {[%clk 0:00:02.4]}
48. Kd5 {[%clk 0:00:04.5]} 48... Rd2+ {[%clk 0:00:02.9]} 49. Ke6 {[%clk
0:00:04.8]} 49... Rc2 {[%clk 0:00:03]} 50. e5 {[%clk 0:00:04]} 50... Kc6 {[%clk
0:00:02]} 51. Rxg2 {[%clk 0:00:04.3]} 51... Rxg2 {[%clk 0:00:01.2]} 52. Kf7
{[%clk 0:00:03]} 52... Re2 {[%clk 0:00:01.9]} 53. e6 {[%clk 0:00:03.5]} 53...
Kxc5 {[%clk 0:00:01.8]} 54. e7 {[%clk 0:00:03.8]} 54... Kd6 {[%clk 0:00:02.6]}
55. e8=Q {[%clk 0:00:04.1]} 55... Rxe8 {[%clk 0:00:03.1]} 56. Kxe8 {[%clk
0:00:05]} 1/2-1/2

[Event "Early-Titled-Tuesday-Blitz-December-26-2023"]
[Site "Chess.com"]
[Date "2023.12.26"]
[Round "8"]
[White "Road2GM3000"]
[Black "bazar-wokzal"]
[Result "1/2-1/2"]
[WhiteElo "2510"]
[BlackElo "2641"]
[TimeControl "180+1"]
[EndTime "9:29:51 PST"]
[Termination "Game drawn by repetition"]

1. d4 {[%clk 0:03:00.9]} 1... Nf6 {[%clk 0:02:59.2]} 2. c4 {[%clk 0:03:00.9]}
2... Nc6 {[%clk 0:02:49.6]} 3. Nc3 {[%clk 0:03:00.7]} 3... e5 {[%clk 0:02:49.7]}
4. d5 {[%clk 0:02:55.1]} 4... Ne7 {[%clk 0:02:49.8]} 5. g3 {[%clk 0:02:53.8]}
5... Ng6 {[%clk 0:02:49.6]} 6. Bg2 {[%clk 0:02:54.1]} 6... Bc5 {[%clk
0:02:49.4]} 7. Nf3 {[%clk 0:02:52.2]} 7... a5 {[%clk 0:02:47.6]} 8. Nd2 {[%clk
0:02:50.4]} 8... d6 {[%clk 0:02:47.6]} 9. Nde4 {[%clk 0:02:49.1]} 9... Nxe4
{[%clk 0:02:46.6]} 10. Nxe4 {[%clk 0:02:49.3]} 10... Bb4+ {[%clk 0:02:47.1]} 11.
Bd2 {[%clk 0:02:47.8]} 11... f5 {[%clk 0:02:41.5]} 12. Nc3 {[%clk 0:02:48.1]}
12... O-O {[%clk 0:02:40.3]} 13. O-O {[%clk 0:02:48.1]} 13... f4 {[%clk
0:02:35.6]} 14. Be4 {[%clk 0:02:36.9]} 14... Qg5 {[%clk 0:02:32]} 15. Qc2 {[%clk
0:02:26.7]} 15... Bh3 {[%clk 0:02:25.2]} 16. Rfe1 {[%clk 0:02:08.9]} 16... Bc5
{[%clk 0:02:25]} 17. Nd1 {[%clk 0:02:01.2]} 17... Qg4 {[%clk 0:02:15]} 18. Bf3
{[%clk 0:01:48.8]} 18... Qd7 {[%clk 0:02:04]} 19. Nc3 {[%clk 0:01:46.2]} 19...
Rf7 {[%clk 0:01:42]} 20. Ne4 {[%clk 0:01:46.3]} 20... Bf5 {[%clk 0:01:39.1]} 21.
Nxc5 {[%clk 0:01:39.4]} 21... dxc5 {[%clk 0:01:25]} 22. Be4 {[%clk 0:01:39.5]}
22... Raf8 {[%clk 0:01:23.8]} 23. Rf1 {[%clk 0:01:25.5]} 23... Ne7 {[%clk
0:01:19.9]} 24. Bxa5 {[%clk 0:01:23.7]} 24... Bh3 {[%clk 0:01:08.8]} 25. Bg2
{[%clk 0:01:21.7]} 25... Bxg2 {[%clk 0:01:04.1]} 26. Kxg2 {[%clk 0:01:21.4]}
26... Nf5 {[%clk 0:01:02.8]} 27. Bc3 {[%clk 0:01:19.2]} 27... Nd4 {[%clk
0:01:00.2]} 28. Bxd4 {[%clk 0:01:19.3]} 28... cxd4 {[%clk 0:01:00.7]} 29. Qe4
{[%clk 0:01:20]} 29... Qd6 {[%clk 0:00:48.7]} 30. a3 {[%clk 0:01:11.8]} 30... c5
{[%clk 0:00:46.2]} 31. dxc6 {[%clk 0:01:05.1]} 31... bxc6 {[%clk 0:00:35.8]} 32.
b4 {[%clk 0:00:59.8]} 32... h5 {[%clk 0:00:30.5]} 33. h4 {[%clk 0:00:59.3]}
33... f3+ {[%clk 0:00:24.9]} 34. exf3 {[%clk 0:00:56.4]} 34... Rxf3 {[%clk
0:00:25.8]} 35. Rae1 {[%clk 0:00:45]} 35... Qf6 {[%clk 0:00:24.3]} 36. Re2
{[%clk 0:00:33.9]} 36... Rxa3 {[%clk 0:00:23.3]} 37. Qxe5 {[%clk 0:00:28.9]}
37... Qf3+ {[%clk 0:00:22.6]} 38. Kh2 {[%clk 0:00:29.5]} 38... d3 {[%clk
0:00:23]} 39. Re3 {[%clk 0:00:17.8]} 39... Qf7 {[%clk 0:00:17.5]} 40. Qe4 {[%clk
0:00:18.2]} 40... Rd8 {[%clk 0:00:15.4]} 41. f4 {[%clk 0:00:12.9]} 41... Ra2+
{[%clk 0:00:13.9]} 42. Kh3 {[%clk 0:00:12.2]} 42... d2 {[%clk 0:00:14.3]} 43.
Rd1 {[%clk 0:00:11.7]} 43... g6 {[%clk 0:00:13.9]} 44. Re2 {[%clk 0:00:11.4]}
44... Qd7+ {[%clk 0:00:12.9]} 45. Qe6+ {[%clk 0:00:10.2]} 45... Qxe6+ {[%clk
0:00:13.1]} 46. Rxe6 {[%clk 0:00:11.1]} 46... Rd4 {[%clk 0:00:12.4]} 47. Re2
{[%clk 0:00:08.4]} 47... Rxc4 {[%clk 0:00:11.4]} 48. Rdxd2 {[%clk 0:00:07.4]}
48... Rxd2 {[%clk 0:00:11.5]} 49. Rxd2 {[%clk 0:00:08.3]} 49... Rxb4 {[%clk
0:00:12.1]} 50. Rd6 {[%clk 0:00:09]} 50... Kf7 {[%clk 0:00:12]} 51. Rxc6 {[%clk
0:00:09.4]} 51... Rb2 {[%clk 0:00:12.5]} 52. Rc7+ {[%clk 0:00:08]} 52... Kf6
{[%clk 0:00:12.4]} 53. g4 {[%clk 0:00:08]} 53... Rb3+ {[%clk 0:00:11.9]} 54. Kg2
{[%clk 0:00:08.6]} 54... hxg4 {[%clk 0:00:12.7]} 55. Rc5 {[%clk 0:00:08.9]}
55... Ra3 {[%clk 0:00:12.5]} 56. Rg5 {[%clk 0:00:08.5]} 56... Rb3 {[%clk
0:00:09.5]} 57. Rxg4 {[%clk 0:00:05.7]} 57... Kf5 {[%clk 0:00:10]} 58. Rg5+
{[%clk 0:00:06.3]} 58... Kxf4 {[%clk 0:00:10.4]} 59. Rxg6 {[%clk 0:00:07]} 59...
Rb2+ {[%clk 0:00:10.4]} 60. Kh3 {[%clk 0:00:07.2]} 60... Rb3+ {[%clk 0:00:10.9]}
61. Kh2 {[%clk 0:00:07.6]} 61... Rb2+ {[%clk 0:00:11.4]} 62. Kh3 {[%clk
0:00:05.4]} 62... Rb3+ {[%clk 0:00:11.7]} 63. Kh2 {[%clk 0:00:06.1]} 63... Rb2+
{[%clk 0:00:12.1]} 64. Kh3 {[%clk 0:00:06.9]} 1/2-1/2

[Event "Early-Titled-Tuesday-Blitz-December-26-2023"]
[Site "Chess.com"]
[Date "2023.12.26"]
[Round "8"]
[White "karinachess1"]
[Black "margarita_2703"]
[Result "1-0"]
[WhiteElo "2574"]
[BlackElo "2345"]
[TimeControl "180+1"]
[EndTime "9:29:52 PST"]
[Termination "karinachess1 won by checkmate"]

1. d4 {[%clk 0:03:00.9]} 1... d5 {[%clk 0:02:59.8]} 2. c4 {[%clk 0:03:00.9]}
2... e6 {[%clk 0:02:57.4]} 3. Nc3 {[%clk 0:03:00.8]} 3... Nf6 {[%clk 0:02:55.3]}
4. cxd5 {[%clk 0:03:00.9]} 4... exd5 {[%clk 0:02:56.2]} 5. Bg5 {[%clk 0:03:01]}
5... Be7 {[%clk 0:02:55.9]} 6. e3 {[%clk 0:03:01.4]} 6... h6 {[%clk 0:02:56.3]}
7. Bh4 {[%clk 0:03:01.4]} 7... O-O {[%clk 0:02:56.3]} 8. Bd3 {[%clk 0:03:01.5]}
8... c6 {[%clk 0:02:50.8]} 9. Qc2 {[%clk 0:02:54.4]} 9... Nbd7 {[%clk
0:02:42.4]} 10. Nf3 {[%clk 0:02:54.3]} 10... Re8 {[%clk 0:02:42.9]} 11. O-O
{[%clk 0:02:53]} 11... Ne4 {[%clk 0:02:42.6]} 12. Bxe7 {[%clk 0:02:51.2]} 12...
Qxe7 {[%clk 0:02:43.5]} 13. a3 {[%clk 0:02:43.2]} 13... f5 {[%clk 0:02:40.1]}
14. b4 {[%clk 0:02:37.5]} 14... a6 {[%clk 0:02:39.3]} 15. Na4 {[%clk 0:02:32.6]}
15... Rb8 {[%clk 0:02:32.1]} 16. Nc5 {[%clk 0:02:30.5]} 16... Ndxc5 {[%clk
0:02:27.2]} 17. bxc5 {[%clk 0:02:30.3]} 17... Qf6 {[%clk 0:02:17.7]} 18. Rab1
{[%clk 0:02:22.9]} 18... Ra8 {[%clk 0:02:17.3]} 19. Ne5 {[%clk 0:02:21]} 19...
Rxe5 {[%clk 0:02:15.3]} 20. dxe5 {[%clk 0:02:20.9]} 20... Qxe5 {[%clk
0:02:16.2]} 21. Rbe1 {[%clk 0:02:14]} 21... Qe7 {[%clk 0:02:01.5]} 22. f3 {[%clk
0:02:02.1]} 22... Nxc5 {[%clk 0:01:58.1]} 23. Bxf5 {[%clk 0:02:02.1]} 23... Bxf5
{[%clk 0:01:59]} 24. Qxf5 {[%clk 0:02:02.7]} 24... Qe6 {[%clk 0:01:56.6]} 25.
Qc2 {[%clk 0:02:01.3]} 25... Nd7 {[%clk 0:01:52.4]} 26. Qb3 {[%clk 0:01:52.4]}
26... b5 {[%clk 0:01:50.9]} 27. e4 {[%clk 0:01:52.4]} 27... Nb6 {[%clk 0:01:46]}
28. exd5 {[%clk 0:01:47.7]} 28... Qxd5 {[%clk 0:01:46.9]} 29. Qc3 {[%clk
0:01:34.4]} 29... Rd8 {[%clk 0:01:40.1]} 30. Re7 {[%clk 0:01:19.9]} 30... Qd4+
{[%clk 0:01:38.8]} 31. Qxd4 {[%clk 0:01:20.2]} 31... Rxd4 {[%clk 0:01:39.7]} 32.
Rc1 {[%clk 0:01:12.8]} 32... Nc4 {[%clk 0:01:38.6]} 33. Rc7 {[%clk 0:00:54.4]}
33... Rd6 {[%clk 0:01:37.8]} 34. a4 {[%clk 0:00:50]} 34... Ne5 {[%clk
0:01:25.9]} 35. f4 {[%clk 0:00:44.8]} 35... Nc4 {[%clk 0:01:24.4]} 36. Kf2
{[%clk 0:00:43.4]} 36... Rd2+ {[%clk 0:01:20]} 37. Kf3 {[%clk 0:00:43.3]} 37...
Rd3+ {[%clk 0:01:20.2]} 38. Ke4 {[%clk 0:00:38.4]} 38... Rd6 {[%clk 0:01:20]}
39. g4 {[%clk 0:00:27.5]} 39... Nd2+ {[%clk 0:01:15.5]} 40. Ke5 {[%clk
0:00:26.5]} 40... Nc4+ {[%clk 0:01:11.5]} 41. Rxc4 {[%clk 0:00:26]} 41... Rd5+
{[%clk 0:01:11.6]} 42. Ke4 {[%clk 0:00:22.6]} 42... bxc4 {[%clk 0:01:11.6]} 43.
Rxc6 {[%clk 0:00:23.1]} 43... Rd2 {[%clk 0:01:10.1]} 44. h4 {[%clk 0:00:19.3]}
44... Rc2 {[%clk 0:01:07.2]} 45. Kf5 {[%clk 0:00:19.4]} 45... Kf7 {[%clk
0:01:00.4]} 46. Rc7+ {[%clk 0:00:19.7]} 46... Kf8 {[%clk 0:00:59.5]} 47. Kg6
{[%clk 0:00:19.9]} 47... c3 {[%clk 0:00:55.6]} 48. Rc8+ {[%clk 0:00:19.4]} 48...
Ke7 {[%clk 0:00:55.5]} 49. Kxg7 {[%clk 0:00:20.3]} 49... Rf2 {[%clk 0:00:52.8]}
50. Rxc3 {[%clk 0:00:14]} 50... Rxf4 {[%clk 0:00:52.6]} 51. g5 {[%clk
0:00:13.5]} 51... hxg5 {[%clk 0:00:51.4]} 52. hxg5 {[%clk 0:00:14.4]} 52... Rxa4
{[%clk 0:00:51.6]} 53. Re3+ {[%clk 0:00:14.3]} 53... Kd7 {[%clk 0:00:50.9]} 54.
g6 {[%clk 0:00:14.1]} 54... a5 {[%clk 0:00:45.4]} 55. Rg3 {[%clk 0:00:11.7]}
55... Ke7 {[%clk 0:00:44.4]} 56. Kh7 {[%clk 0:00:10.7]} 56... Rh4+ {[%clk
0:00:44.2]} 57. Kg8 {[%clk 0:00:11.2]} 57... a4 {[%clk 0:00:43.7]} 58. g7 {[%clk
0:00:10.9]} 58... Rh5 {[%clk 0:00:37.5]} 59. Re3+ {[%clk 0:00:10.8]} 59... Kd7
{[%clk 0:00:35.1]} 60. Kf7 {[%clk 0:00:09.5]} 60... Rf5+ {[%clk 0:00:24.2]} 61.
Kg6 {[%clk 0:00:09.6]} 61... Rf1 {[%clk 0:00:22.9]} 62. Rg3 {[%clk 0:00:09.8]}
62... a3 {[%clk 0:00:17.3]} 63. g8=Q {[%clk 0:00:10]} 63... a2 {[%clk
0:00:18.2]} 64. Qd5+ {[%clk 0:00:09.8]} 64... Ke7 {[%clk 0:00:17.9]} 65. Re3+
{[%clk 0:00:09.6]} 65... Kf8 {[%clk 0:00:17.8]} 66. Qd8# {[%clk 0:00:09.9]} 1-0